fUST/lending_fUST_20260424
["ID","MTS","AMOUNT","RATE_DAILY","PERIOD"]
[421075272,1776970249140,-617.6966758,0.00022473,2]
[421075273,1776970249150,-500.0,0.00022473,2]
[421075274,1776970249159,-500.0,0.00022473,2]
[421075275,1776970249169,-167.32969395,0.00022473,2]
[421075276,1776970249179,-500.0,0.00022473,2]
[421075277,1776970249188,-320.18437351,0.00022473,2]
[421075278,1776970249197,-500.0,0.00022473,2]
[421075279,1776970249207,-500.0,0.00022473,2]
[421075280,1776970249216,-500.0,0.00022473,2]
[421075281,1776970249226,-500.0,0.00022473,2]
[421075282,1776970249235,-150.0,0.00022473,2]
[421075283,1776970249244,-500.0,0.00022473,2]
[421075284,1776970249254,-500.0,0.00022473,2]
[421075285,1776970249263,-500.0,0.00022473,2]
[421075286,1776970249272,-500.0,0.00022473,2]
[421075287,1776970249282,-500.0,0.00022473,2]
[421075288,1776970249292,-500.0,0.00022473,2]
[421075289,1776970249301,-500.0,0.00022473,2]
[421075290,1776970249311,-500.0,0.00022473,2]
[421075291,1776970249321,-500.0,0.00022473,2]
[421075292,1776970249334,-251.55766644,0.00022473,2]
[421075293,1776970249508,-500.0,0.00022473,2]
[421075294,1776970249528,-500.0,0.00022473,2]
[421075295,1776970249538,-500.0,0.00022473,2]
[421075296,1776970249549,-500.0,0.00022473,2]
[421075297,1776970249559,-500.0,0.00022473,2]
[421075298,1776970249571,-500.16473198,0.00022473,2]
[421075299,1776970249580,-340.61630391,0.00022473,2]
[421075300,1776970249590,-500.0,0.00022473,2]
[421075301,1776970249599,-500.0,0.00022473,2]
[421075302,1776970249608,-500.0,0.00022473,2]
[421075303,1776970249618,-624.00351645,0.00022473,2]
[421075304,1776970249628,-500.0,0.00022473,2]
[421075305,1776970249638,-500.0,0.00022473,2]
[421075306,1776970249647,-500.0,0.00022473,2]
[421075307,1776970249656,-500.0,0.00022473,2]
[421075308,1776970249669,-500.0,0.00022473,2]
[421075309,1776970249678,-165.6155286,0.00022473,2]
[421075310,1776970249688,-500.0,0.00022473,2]
[421075311,1776970249698,-500.0,0.00022473,2]
[421075312,1776970249709,-500.0,0.00022473,2]
[421075313,1776970249719,-500.0,0.00022473,2]
[421075314,1776970249729,-500.0,0.00022473,2]
[421075315,1776970249741,-500.0,0.00022473,2]
[421075316,1776970249751,-200.0,0.00022475,120]
[421075317,1776970249760,-874716.95827567,0.00022498,2]
[421075321,1776971142119,-512.46676888,0.00013,2]
[421075322,1776971142140,-604.0,0.00013,2]
[421075323,1776971142167,-156.0,0.00013699,2]
[421075324,1776971142190,-151.17467276,0.00013699,2]
[421075325,1776971142212,-471.90777625,0.00013699,2]
[421075328,1776971252101,-248.39764534,0.00013562,2]
[421075329,1776971252129,-528.09222375,0.00013699,2]
[421075330,1776971252154,-615.0,0.00013699,2]
[421075331,1776971252182,-150.0,0.0001435,2]
[421075332,1776971252212,-1616.81655628,0.00015,2]
[421075337,1776971432713,-2000.0,0.000119,2]
[421075339,1776971432723,-1655.73839223,0.0001485,2]
[421075341,1776971432732,-691.21008731,0.00015,2]
[421075343,1776971432742,-177.0,0.0001635,2]
[421075344,1776971432751,-300.0,0.00016999,2]
[421075346,1776971432760,-1356.26550682,0.00017,2]
[421075477,1776971438983,-1226.3477922,0.00017,2]
[421075478,1776971438995,-1724.83884943,0.00017,2]
[421075479,1776971439006,-1117.47413717,0.00017,2]
[421075480,1776971439018,-858.12740705,0.00017,2]
[421075491,1776971441635,-1462.47419193,0.00017,2]
[421075492,1776971441645,-669.0,0.00017,2]
[421075493,1776971441654,-49.56591142,0.00018349,2]
[421075494,1776971441956,-350.92293615,0.00018349,2]
[421075534,1776971447201,-1500.0,0.00013699,2]
[421075535,1776971447211,-1500.0,0.00013699,2]
[421075536,1776971447220,-1587.80666268,0.00018349,2]
[421075548,1776972345354,-1024.0,0.00011999,2]
[421075549,1776972345377,-159.9808026,0.00011999,2]
[421075550,1776972432078,-589.0,0.00011999,2]
[421075551,1776972432101,-161.73670003,0.00011999,2]
[421075552,1776972432123,-656.20471537,0.00012,2]
[421075553,1776972432148,-164.79255895,0.00012,2]
[421075554,1776972432169,-191.07253761,0.00012,2]
[421075555,1776972432193,-197.9673449,0.00012,2]
[421075556,1776972432215,-42.62614314,0.0001229,2]
[421075557,1776972432242,-613.57857223,0.0001229,2]
[421075558,1776972432264,-656.20471537,0.00012579,2]
[421075559,1776972432287,-105.36138962,0.00012869,7]
[421075560,1776972434137,-161.73670003,0.00011999,2]
[421075561,1776972434158,-49.27295404,0.00012869,7]
[421075562,1776972454082,-176.49480987,0.00012869,7]
[421075563,1776972571090,-325.07556184,0.00012869,7]
[421075564,1776972571113,-656.20471537,0.00013159,7]
[421075565,1776972571135,-197.9673449,0.000132,7]
[421075566,1776972571157,-656.20471537,0.00013448,7]
[421075567,1776972571180,-2551.71539531,0.00013562,2]
[421075568,1776972571202,-613.0,0.00013562,2]
[421075569,1776972571223,-300.0,0.00013698,2]
[421075570,1776972571245,-1500.0,0.00013699,2]
[421075571,1776972571266,-2280.734126,0.00013699,2]
[421075572,1776972571287,-1000.0,0.00013699,2]
[421075573,1776972571309,-656.20471537,0.00013738,7]
[421075574,1776972571333,-190.84930603,0.00013999,2]
[421075575,1776972571359,-656.20471537,0.00014028,7]
[421075576,1776972571382,-656.20471537,0.00014317,7]
[421075577,1776972571406,-197.9673449,0.000144,7]
[421075578,1776972571428,-656.20471537,0.00014607,14]
[421075579,1776972571452,-656.20471537,0.00014897,14]
[421075580,1776972571475,-420.0,0.00015012,2]
[421075581,1776972571499,-287.84686448,0.00015186,14]
[421075653,1776972639099,-368.35785089,0.00015186,14]
[421075654,1776972639108,-656.20471537,0.00015476,14]
[421075655,1776972639118,-197.9673449,0.000156,14]
[421075656,1776972639127,-656.20471537,0.00015766,14]
[421075657,1776972639136,-1655.73839223,0.00015839,2]
[421075658,1776972639146,-649.0,0.00015839,2]
[421075659,1776972639155,-219.96191204,0.00015999,2]
[421075660,1776972639164,-656.20471537,0.00016056,14]
[421075661,1776972639173,-164.79255895,0.000162,14]
[421075662,1776972639183,-191.07253761,0.000162,14]
[421075663,1776972639192,-656.20471537,0.00016345,30]
[421075664,1776972639202,-656.20471537,0.00016635,30]
[421075665,1776972639211,-197.9673449,0.000168,30]
[421075666,1776972639221,-568.71075332,0.00017376,60]
[421075667,1776972639230,-568.71075332,0.00017913,60]
[421075668,1776972639239,-500.0,0.00017999,2]
[421075669,1776972639249,-249.07451804,0.00017999,2]
[421075670,1776972639258,-197.9673449,0.00018,60]
[421075672,1776972639267,-568.71075332,0.00018451,60]
[421075673,1776972639276,-300.0,0.00018676,2]
[421075674,1776972639286,-1390.37585127,0.00018677,2]
[421075675,1776972639295,-160.0,0.00018678,2]
[421075676,1776972639304,-162.96228481,0.000187,2]
[421075677,1776972639315,-242.89679075,0.000187,2]
[421075678,1776972639324,-180.72167031,0.000187,2]
[421075679,1776972639333,-171.63408987,0.000187,2]
[421075680,1776972639344,-164.6858869,0.000187,2]
[421075681,1776972639355,-172.51744192,0.000187,2]
[421075682,1776972639365,-170.77836614,0.000187,2]
[421075683,1776972639374,-161.21343042,0.000187,2]
[421075684,1776972639383,-162.96228481,0.000189,2]
[421075685,1776972639392,-171.63408987,0.000189,2]
[421075686,1776972639402,-164.6858869,0.000189,2]
[421075687,1776972639411,-170.77836614,0.000189,2]
[421075688,1776972639421,-504.93426169,0.00018953,60]
[421075689,1776972639430,-568.71075332,0.00018988,120]
[421075690,1776972639439,-170.77836614,0.000191,2]
[421075691,1776972639448,-170.77836614,0.000192,2]
[421075692,1776972639457,-197.9673449,0.00019201,60]
[421075693,1776972639466,-504.93426169,0.00019242,60]
[421075694,1776972639475,-1611.06614802,0.00019362,2]
[421075695,1776972639485,-2150.738,0.00019433,2]
[421075696,1776972639494,-15322.03215328,0.00019436,2]
[421075697,1776972639503,-1374.90062937,0.00019462,2]
[421075698,1776972639512,-445.20276601,0.0001947,2]
[421075699,1776972639521,-1409.0,0.00019482,2]
[421075700,1776972639530,-645.0,0.00019482,2]
[421075701,1776972639539,-2210.0,0.00019482,2]
[421075702,1776972639549,-184.0,0.00019482,2]
[421075703,1776972639558,-441.0,0.00019482,2]
[421075704,1776972639568,-163.81027435,0.000195,2]
[421075705,1776972639577,-500.0,0.00019532,60]
[421075707,1776972639587,-504.93426169,0.00019532,60]
[421075708,1776972639596,-500.0,0.00019536,2]
[421075709,1776972639605,-500.0,0.00019536,2]
[421075710,1776972639614,-500.0,0.00019536,2]
[421075711,1776972639623,-500.0,0.00019536,2]
[421075712,1776972639633,-500.0,0.00019536,2]
[421075713,1776972639643,-500.0,0.00019536,2]
[421075714,1776972639652,-478.78534887,0.00019536,2]
[421075715,1776972639661,-530.69185656,0.00019536,2]
[421075716,1776972639670,-500.0,0.00019536,2]
[421075717,1776972639680,-500.0,0.00019536,2]
[421075718,1776972639689,-500.0,0.00019536,2]
[421075719,1776972639698,-616.24653973,0.00019536,2]
[421075720,1776972639707,-500.0,0.00019536,2]
[421075721,1776972639716,-500.0,0.00019536,2]
[421075722,1776972639726,-331.52924723,0.00019536,2]
[421075723,1776972639735,-500.0,0.00019536,2]
[421075724,1776972639744,-500.0,0.00019536,2]
[421075725,1776972639753,-408.99987152,0.00019536,2]
[421075726,1776972639763,-500.0,0.00019536,2]
[421075727,1776972639773,-500.0,0.00019536,2]
[421075728,1776972639783,-500.0,0.00019536,2]
[421075729,1776972639792,-500.0,0.00019536,2]
[421075730,1776972639803,-500.0,0.00019536,2]
[421075731,1776972639813,-500.0,0.00019536,2]
[421075732,1776972639822,-560.54929735,0.00019536,2]
[421075733,1776972639831,-500.0,0.00019536,2]
[421075734,1776972639843,-590.31225275,0.00019536,2]
[421075735,1776972639853,-300.0,0.00019537,2]
[421075736,1776972639862,-9579.36595204,0.00019537,2]
[421075741,1776972640311,-744.24204284,0.00019537,2]
[421075768,1776972646593,-33867.75687416,0.00019537,2]
[421075769,1776972646603,-1374.90062935,0.00019572,2]
[421075771,1776972646613,-5000.0,0.00019574,2]
[421075772,1776972646623,-5000.0,0.00019574,2]
[421075773,1776972646632,-5000.0,0.00019574,2]
[421075774,1776972646642,-300.0,0.00019589,3]
[421075775,1776972646651,-500.0,0.000196,2]
[421075776,1776972646661,-277.7423944,0.00019638,30]
[421075777,1776972646671,-156.0534858,0.00019638,30]
[421075778,1776972646681,-163.81027435,0.00019669,2]
[421075779,1776972646690,-1374.90062935,0.00019681,2]
[421075780,1776972646699,-257.0,0.000197,2]
[421075781,1776972646708,-567.969,0.00019781,2]
[421075782,1776972646717,-1374.90062935,0.00019791,2]
[421075783,1776972646726,-197.96734486,0.00019806,120]
[421075784,1776972646738,-191.0725376,0.00019806,60]
[421075785,1776972646747,-504.93426169,0.00019822,120]
[421075786,1776972646758,-769.5493902,0.00019898,2]
[421075788,1776972646767,-424.5187482,0.00019898,2]
[421075789,1776972646777,-769.5493902,0.00019898,2]
[421075790,1776972646786,-769.5493902,0.00019898,2]
[421075791,1776972646796,-769.5493902,0.00019898,2]
[421075792,1776972646805,-769.5493902,0.00019898,2]
[421075793,1776972646815,-769.5493902,0.00019898,2]
[421075794,1776972646824,-769.5493902,0.00019898,2]
[421075795,1776972646835,-769.5493902,0.00019898,2]
[421075796,1776972646845,-769.5493902,0.00019898,2]
[421075797,1776972646855,-769.5493902,0.00019898,2]
[421075798,1776972646864,-769.5493902,0.00019898,2]
[421075799,1776972646874,-769.5493902,0.00019898,2]
[421075800,1776972646884,-769.5493902,0.00019898,2]
[421075801,1776972646893,-769.5493902,0.00019898,2]
[421075802,1776972646903,-769.5493902,0.00019898,2]
[421075803,1776972646913,-769.5493902,0.00019898,2]
[421075804,1776972646922,-769.5493902,0.00019898,2]
[421075805,1776972646932,-769.5493902,0.00019898,2]
[421075806,1776972646942,-769.5493902,0.00019898,2]
[421075807,1776972646952,-769.5493902,0.00019898,2]
[421075808,1776972646961,-5000.0,0.00019899,2]
[421075809,1776972646971,-208.29,0.000199,2]
[421075810,1776972646981,-1374.90062935,0.000199,2]
[421075811,1776972646990,-20658.69223449,0.000199,2]
[421075812,1776972647000,-3123.52,0.000199,2]
[421075813,1776972647010,-163.81027435,0.000199,2]
[421075814,1776972647019,-2230.315306,0.00019981,2]
[421075815,1776972647028,-600.0,0.00019991,2]
[421075816,1776972647038,-278.18712405,0.00019999,2]
[421075817,1776972647047,-220.12860092,0.0002,2]
[421075818,1776972647057,-158462.15699754,0.0002,2]
[421075820,1776972647088,-841.45616995,0.0002,2]
[421075821,1776972700650,-804.38074126,0.000119,2]
[421075824,1776973542166,-202.14914263,0.00011781,2]
[421075825,1776973542187,-804.38074126,0.000119,2]
[421075826,1776973542211,-150.0,0.0001235,2]
[421075827,1776973542231,-69.87873421,0.00013699,2]
[421075828,1776973601079,-171.02632281,0.00013562,2]
[421075830,1776973632175,-176.20221647,0.00013562,2]
[421075831,1776973632195,-0.13556907,0.00013562,2]
[421075832,1776973640153,-612.86443093,0.00013562,2]
[421075833,1776973640176,-930.12126579,0.00013699,2]
[421075834,1776973640199,-177.0,0.0001435,2]
[421075835,1776973640222,-40.00244205,0.0001635,2]
[421075836,1776973642095,-163.99755795,0.0001635,2]
[421075837,1776973642118,-231.0,0.0001835,2]
[421075838,1776973642139,-156.25,0.00019,2]
[421075839,1776973642161,-160.0,0.00019124,2]
[421075840,1776973642183,-1200.0,0.00019229,2]
[421075841,1776973642204,-300.0,0.00019229,2]
[421075842,1776973642226,-874.57542932,0.0001923,2]
[421075843,1776973642247,-379.51944109,0.0001923,2]
[421075844,1776973644073,-174.91757556,0.0001923,2]
[421075845,1776973654568,-337.01513163,0.0001923,2]
[421075889,1776973832023,-708.0,0.00019229,2]
[421075891,1776973832032,-300.0,0.00019229,2]
[421075893,1776973832042,-517.54785172,0.0001923,2]
[421075895,1776973832051,-1139.9748829,0.0001923,2]
[421076041,1776973838644,-160.0,0.00019224,2]
[421076042,1776973838653,-1070.0251171,0.0001923,2]
[421076043,1776973838662,-184.0,0.0001923,2]
[421076044,1776973838672,-441.0,0.0001923,2]
[421076045,1776973838681,-150.0,0.0001923,2]
[421076046,1776973838690,-1409.68287957,0.000198,2]
[421076047,1776973838699,-163.81027436,0.000198,2]
[421076048,1776973838709,-508.31863362,0.00019824,2]
[421076055,1776973840658,-91.68136638,0.00019824,2]
[421076056,1776973840669,-49.3588152,0.00019824,2]
[421076082,1776973846386,-668.6411848,0.00019824,2]
[421076084,1776973846395,-163.81027434,0.0001985,2]
[421076086,1776973846405,-600.24852436,0.00019898,2]
[421076088,1776973846414,-600.24852436,0.00019898,2]
[421076090,1776973846423,-179.58294886,0.00019899,2]
[421076092,1776973846433,-481.28102747,0.00019899,2]
[421076094,1776973846442,-395.61658859,0.00019899,2]
[421076096,1776973846452,-3878.26517715,0.00019899,2]
[421076420,1776974520070,-235.63927721,0.00013699,2]
[421076421,1776974740129,-1000.0,0.00013699,2]
[421076422,1776974740149,-615.0,0.00013699,2]
[421076423,1776974740172,-150.0,0.0001435,2]
[421076424,1776974740191,-63.63515791,0.00015,2]
[421076427,1776974840217,-175.98969583,0.00014999,2]
[421076428,1776974850164,-124.01030417,0.00014999,2]
[421076429,1776974850186,-222.50741575,0.00015,2]
[421076491,1776974954087,-343.90447743,0.00014999,2]
[421076519,1776975039183,-300.0,0.00014999,2]
[421076521,1776975039193,-636.0,0.00014999,2]
[421076523,1776975039203,-819.54277787,0.00015,2]
[421076603,1776975046728,-4635.74901195,0.00015,2]
[421076651,1776975953125,-1195.61925874,0.000119,2]
[421076652,1776975953147,-52.82697939,0.000119,2]
[421076653,1776976028094,-150.0,0.00012125,2]
[421076654,1776976028115,-26.33708644,0.00012125,2]
[421076655,1776976039385,-564.66291356,0.00012125,2]
[421076656,1776976039409,-1000.0,0.00013699,2]
[421076657,1776976039431,-177.0,0.00014125,2]
[421076658,1776976039455,-95.09859961,0.00015,2]
[421076659,1776976040119,-654.27753615,0.00015,2]
[421076660,1776976040140,-204.0,0.00016125,2]
[421076661,1776976040160,-300.0,0.00016697,2]
[421076662,1776976040182,-96.95164293,0.00016698,2]
[421076663,1776976043132,-207.54246722,0.00016698,2]
[421076664,1776976152080,-919.93145117,0.00013699,2]
[421076677,1776976232457,-80.06854883,0.00013699,2]
[421076678,1776976232468,-179.00211963,0.00013699,2]
[421076679,1776976232481,-435.99788037,0.00013699,2]
[421076680,1776976232491,-197.35058863,0.00016601,2]
[421076681,1776976232502,-300.0,0.00016696,2]
[421076682,1776976232512,-300.0,0.00016696,2]
[421076683,1776976232523,-332.97803436,0.00016696,2]
[421076714,1776976238935,-867.02196564,0.00016696,2]
[421076715,1776976238945,-412.3968797,0.00016697,2]
[421076726,1776976246764,-28294.2403483,0.00016697,2]
[421076729,1776976247163,-300.18062377,0.00016697,2]
[421076740,1776976247389,-7963.80187317,0.00016697,2]
[421076744,1776977147123,-804.38074126,0.000119,2]
[421076745,1776977147145,-424.23163884,0.000119,2]
[421076746,1776977191093,-171.02632281,0.00011781,2]
[421076747,1776977225127,-378.3513591,0.00011781,2]
[421076748,1776977225147,-586.0,0.00011781,2]
[421076749,1776977225182,-150.0,0.00011841,2]
[421076750,1776977225206,-595.1608837,0.00013699,2]
[421076751,1776977233078,-175.05952664,0.00013699,2]
[421076752,1776977234135,-179.4582537,0.00013699,2]
[421076753,1776977239080,-50.32133596,0.00013699,2]
[421076754,1776977239102,-177.0,0.00013841,2]
[421076755,1776977239122,-204.0,0.00015841,2]
[421076756,1776977239145,-55.66843382,0.00016336,7]
[421076757,1776977239173,-96.33156618,0.00016336,7]
[421076758,1776977239193,-1200.0,0.00016485,2]
[421076759,1776977239213,-288.1998608,0.00016486,2]
[421076760,1776977239233,-1568.92853054,0.00016486,2]
[421077131,1776977441232,-577.18091218,0.00016386,2]
[421077132,1776977441242,-658.0,0.00016386,2]
[421077133,1776977441251,-626.18861386,0.00016486,2]
[421077134,1776977441261,-300.0,0.00016999,2]
[421077135,1776977441272,-1138.0,0.00016999,2]
[421077136,1776977441284,-159.94523759,0.00017,2]
[421077167,1776977447111,-5886.55232403,0.00017,2]
[421077179,1776978332673,-512.46676888,0.00013,2]
[421077180,1776978332696,-150.0,0.00013349,2]
[421077181,1776978332716,-300.0,0.00013698,2]
[421077182,1776978332736,-300.0,0.00013698,2]
[421077183,1776978332757,-333.0,0.00013698,2]
[421077184,1776978332778,-173.16611125,0.00013699,2]
[421077185,1776978425132,-329.34195053,0.00013698,2]
[421077186,1776978449089,-285.65804947,0.00013698,2]
[421077187,1776978449110,-300.0,0.00013698,2]
[421077188,1776978449131,-41.55389421,0.00013699,2]
[421077189,1776978453365,-150.1494764,0.00013699,2]
[421077190,1776978550073,-300.0,0.00013698,2]
[421077191,1776978550094,-635.13051814,0.00013699,2]
[421077192,1776978550115,-500.0,0.00013699,2]
[421077193,1776978550134,-500.0,0.00013699,2]
[421077194,1776978550154,-500.0,0.00013699,2]
[421077195,1776978550175,-538.17578875,0.00013699,2]
[421077208,1776978632321,-389.505,0.00013699,2]
[421077209,1776978632333,-610.495,0.00013699,2]
[421077210,1776978632342,-150.0,0.00014356,2]
[421077211,1776978632352,-216.1498956,0.00016148,2]
[421077212,1776978632361,-1646.3378583,0.00016148,2]
[421077213,1776978632370,-152.0,0.00016192,7]
[421077214,1776978632379,-177.0,0.00016356,2]
[421077215,1776978632388,-874.57542932,0.00016356,2]
[421077216,1776978632398,-300.0,0.00016998,2]
[421077217,1776978632407,-500.0,0.00016999,2]
[421077218,1776978632418,-500.0,0.00016999,2]
[421077219,1776978632429,-500.0,0.00016999,2]
[421077220,1776978632440,-500.0,0.00016999,2]
[421077221,1776978632449,-500.0,0.00016999,2]
[421077222,1776978632460,-416.9363856,0.00016999,2]
[421077223,1776978632470,-42670.44193271,0.00017,2]
[421077224,1776978632481,-6451.36392331,0.00017,2]
[421077225,1776978632495,-8383.13093656,0.00017,2]
[421077226,1776978632505,-600.0,0.00017031,2]
[421077227,1776978632515,-1646.3378583,0.0001792,2]
[421077228,1776978632525,-151.0,0.00017999,2]
[421077229,1776978632535,-2500.0,0.00018,60]
[421077230,1776978632544,-151.0,0.00018022,2]
[421077231,1776978632554,-229.887,0.00018025,2]
[421077232,1776978632565,-151.0,0.00018025,2]
[421077233,1776978632574,-441.0,0.0001815,2]
[421077234,1776978632584,-184.105,0.0001815,2]
[421077235,1776978632593,-204.0,0.00018356,2]
[421077236,1776978632602,-104.24312018,0.00018547,2]
[421077237,1776978632613,-111.90677542,0.00018547,2]
[421077238,1776978632622,-420.0,0.00018566,2]
[421077239,1776978632631,-151.0,0.0001871,2]
[421077240,1776978632640,-720.0,0.00018734,2]
[421077241,1776978632649,-166.213,0.0001874,2]
[421077242,1776978632659,-1409.0,0.0001874,2]
[421077243,1776978632670,-2210.0,0.0001874,2]
[421077244,1776978632681,-325.3967881,0.00018801,2]
[421077245,1776978632691,-208.70293861,0.00018801,2]
[421077308,1776978638257,-247.13560929,0.00018801,2]
[421077309,1776978638267,-151.0,0.00018801,2]
[421077310,1776978638277,-700.0,0.00018801,2]
[421077311,1776978638288,-160.0,0.00018814,2]
[421077312,1776978638298,-537.6845,0.00018999,2]
[421077313,1776978638308,-2150.738,0.00018999,2]
[421077314,1776978638321,-164.0,0.00019,2]
[421077315,1776978638339,-224.0,0.00019,2]
[421077316,1776978638359,-746.7139992,0.00019,30]
[421077317,1776978638369,-413.0,0.00019,2]
[421077318,1776978638378,-261.0,0.00019,2]
[421077319,1776978638388,-153.0,0.00019,2]
[421077320,1776978638397,-453.29496767,0.00019,2]
[421077321,1776978638407,-2575.0,0.00019,2]
[421077322,1776978638417,-425.06442059,0.00019054,2]
[421077323,1776978638426,-174.0,0.00019273,2]
[421077324,1776978638436,-2230.315306,0.00019547,2]
[421077325,1776978638446,-277.7423945,0.00019565,30]
[421077326,1776978638457,-156.0534858,0.00019565,30]
[421077327,1776978638466,-194.0,0.000196,2]
[421077328,1776978638476,-455.6668882,0.00019666,2]
[421077329,1776978638486,-1646.3378583,0.00019692,2]
[421077330,1776978638496,-167.0,0.0001971,2]
[421077331,1776978638505,-467.375,0.000198,2]
[421077332,1776978638515,-197.35058863,0.00019873,2]
[421077333,1776978638524,-197.35058861,0.0001988,2]
[421077334,1776978638533,-197.35058861,0.00019887,2]
[421077335,1776978638543,-197.35058861,0.00019893,2]
[421077336,1776978638552,-528.079,0.00019899,2]
[421077337,1776978638561,-488.38362578,0.00019899,2]
[421077338,1776978638571,-151.0,0.00019899,2]
[421077339,1776978638580,-151.0,0.00019899,2]
[421077340,1776978638590,-151.0,0.00019899,2]
[421077341,1776978638599,-151.0,0.00019899,2]
[421077342,1776978638609,-151.68053369,0.00019899,2]
[421077343,1776978638619,-378.4299652,0.00019899,2]
[421077344,1776978638628,-775.79496395,0.00019899,2]
[421077345,1776978638637,-775.79496395,0.00019899,2]
[421077346,1776978638647,-775.79496395,0.00019899,2]
[421077347,1776978638657,-775.79496395,0.00019899,2]
[421077348,1776978638668,-775.79496395,0.00019899,2]
[421077350,1776978638677,-775.79496395,0.00019899,2]
[421077352,1776978638686,-775.79496395,0.00019899,2]
[421077354,1776978638695,-775.79496395,0.00019899,2]
[421077356,1776978638704,-775.79496395,0.00019899,2]
[421077358,1776978638713,-775.79496395,0.00019899,2]
[421077359,1776978638722,-775.79496395,0.00019899,2]
[421077361,1776978638731,-775.79496395,0.00019899,2]
[421077362,1776978638740,-775.79496395,0.00019899,2]
[421077364,1776978638749,-775.79496395,0.00019899,2]
[421077366,1776978638758,-775.79496395,0.00019899,2]
[421077368,1776978638767,-805.63323179,0.00019899,2]
[421077370,1776978638776,-805.63323179,0.00019899,2]
[421077372,1776978638786,-805.63323179,0.00019899,2]
[421077374,1776978638795,-5.50828924,0.00019899,2]
[421077449,1776978640571,-311.38571959,0.00019899,2]
[421077457,1776978643081,-488.73922296,0.00019899,2]
[421077458,1776978643091,-805.63323179,0.00019899,2]
[421077459,1776978643103,-805.63323179,0.00019899,2]
[421077460,1776978643113,-805.63323179,0.00019899,2]
[421077461,1776978643122,-805.63323179,0.00019899,2]
[421077462,1776978643133,-805.63323179,0.00019899,2]
[421077463,1776978643142,-805.63323179,0.00019899,2]
[421077464,1776978643151,-1412.37575949,0.00019899,2]
[421077465,1776978643161,-16978.46686971,0.000199,2]
[421077466,1776978643172,-5029.77788828,0.000199,2]
[421077467,1776978643184,-1149.210458,0.000199,2]
[421077468,1776978643194,-7545.19668423,0.000199,2]
[421077469,1776978643213,-1359.47540712,0.000199,2]
[421077470,1776978643222,-197.35058861,0.000199,2]
[421077471,1776978643231,-267.46668479,0.00019973,2]
[421077472,1776978643240,-500.0,0.00019973,2]
[421077473,1776978643249,-155.0,0.00019999,2]
[421077474,1776978643258,-3785.38418298,0.0002,2]
[421077478,1776978646589,-671.16,0.0002,2]
[421077483,1776978971946,-311.38571959,0.00013699,2]
[421077484,1776979531134,-1195.61925874,0.000119,2]
[421077485,1776979531157,-104.84564359,0.00012596,2]
[421077486,1776979626132,-204.73404587,0.0001247,2]
[421077488,1776979627771,-203.86028249,0.0001247,2]
[421077489,1776979627793,-175.28044333,0.0001247,2]
[421077491,1776979638286,-176.20933046,0.0001247,2]
[421077492,1776979650086,-244.51022621,0.0001247,2]
[421077493,1776979650110,-45.15435641,0.00012596,2]
[421077494,1776979650132,-1000.0,0.00013699,2]
[421077495,1776979650155,-177.0,0.00014596,2]
[421077496,1776979650177,-200.0,0.00016448,2]
[421077497,1776979650199,-35.11975621,0.00016448,7]
[421077498,1776979651094,-205.73024379,0.00016448,7]
[421077499,1776979651119,-204.0,0.00016596,2]
[421077500,1776979651142,-231.0,0.00018596,2]
[421077501,1776979651164,-300.0,0.00018779,2]
[421077502,1776979651184,-166.082,0.0001878,2]
[421077503,1776979651204,-55.82821244,0.0001878,2]
[421077504,1776979753071,-962.50979938,0.00013699,2]
[421077538,1776979832181,-37.49020062,0.00013699,2]
[421077540,1776979832190,-150.0,0.00016239,2]
[421077542,1776979832200,-177.0,0.00018239,2]